bitfinex/quotes_BTCUSD_20251004
["timestamp","ask_amount","ask_price","bid_price","bid_amount"]
[1759582493426,0.23870181,121980.0,121970.0,0.00230013]
[1759582493616,0.24395181,121980.0,121970.0,0.00033013]
[1759582493817,0.26542912,121980.0,121970.0,0.09697013]
[1759582493990,0.26855912,121980.0,121970.0,0.09697013]
[1759582496611,0.26855912,121980.0,121970.0,0.09894013]
[1759582496612,0.11472937,121980.0,121970.0,0.09894013]
[1759582497023,0.11684937,121980.0,121970.0,0.09894013]
[1759582498962,0.11684937,121980.0,121970.0,0.1153376]
[1759582499867,0.11472937,121980.0,121970.0,0.27931234]
[1759582500069,0.11472937,121980.0,121970.0,0.09894013]
[1759582500276,0.11472937,121980.0,121970.0,0.2497776]
[1759582500481,0.11472937,121980.0,121970.0,0.31858013]
[1759582503240,0.11669937,121980.0,121970.0,0.31858013]
[1759582503458,0.11472937,121980.0,121970.0,0.31858013]
[1759582509894,0.11472937,121980.0,121970.0,0.48255487]
[1759582511209,0.11472937,121980.0,121970.0,0.48414487]
[1759582512685,0.03160731,121980.0,121970.0,0.48414487]
[1759582512887,0.007,121980.0,121970.0,0.48414487]
[1759582513123,0.007,121980.0,121970.0,0.50875057]
[1759582514655,0.007,121980.0,121970.0,2.77107806]
[1759582514854,0.007,121980.0,121970.0,2.77558855]
[1759582515480,0.004,121980.0,121970.0,2.77558855]
[1759582515694,0.00058884,121990.0,121970.0,3.19871061]
[1759582515903,0.00058884,121990.0,121980.0,2.87190747]
[1759582516110,0.00058884,121990.0,121980.0,3.58634576]
[1759582516326,0.00058884,121990.0,121980.0,3.58833576]
[1759582516538,0.00058884,121990.0,121980.0,3.5149069]
[1759582516748,0.00058884,121990.0,121980.0,3.5150269]
[1759582516953,0.00058884,121990.0,121980.0,2.8576269]
[1759582517194,0.00058884,121990.0,121980.0,3.5150269]
[1759582518241,0.00058884,121990.0,121980.0,3.5200269]
[1759582518871,0.00058884,121990.0,121980.0,3.5260269]
[1759582519291,0.20823153,122020.0,122000.0,0.16393164]
[1759582519497,0.20823153,122020.0,121990.0,0.16394786]
[1759582519498,0.0052,122010.0,121990.0,0.16394786]
[1759582519711,0.0052,122010.0,122000.0,0.98049442]
[1759582519928,0.0052,122010.0,121990.0,0.16566342]
[1759582520204,0.16589099,122010.0,122000.0,3.10092628]
[1759582520378,0.00197,122010.0,122000.0,0.5070437]
[1759582520606,0.29458359,122020.0,122000.0,0.5070437]
[1759582520750,0.16392099,122010.0,122000.0,0.1905237]
[1759582521091,0.16392099,122010.0,122000.0,0.50716926]
[1759582521341,0.25850634,122020.0,122000.0,0.50716926]
[1759582521807,0.25850634,122020.0,122000.0,0.48256998]
[1759582521981,0.25850634,122020.0,122010.0,0.23132]
[1759582522189,0.16392099,122010.0,122000.0,0.24925998]
[1759582522393,0.16392099,122010.0,122000.0,0.16604998]
[1759582522605,0.16589099,122010.0,122000.0,0.48256998]
[1759582523250,0.16589099,122010.0,122000.0,0.16604998]
[1759582523455,0.16589099,122010.0,122000.0,0.31859556]
[1759582523634,0.16589099,122010.0,122000.0,0.0852]
[1759582523835,0.16589099,122010.0,122000.0,0.74913442]
[1759582523972,0.16589099,122010.0,122000.0,2.50695142]
[1759582524174,0.16589099,122010.0,122000.0,0.24913442]
[1759582524819,0.16589099,122010.0,122000.0,0.48041442]
[1759582525234,0.16392099,122010.0,122000.0,0.39521442]
[1759582525456,0.16392099,122010.0,122000.0,0.48041442]
[1759582525668,0.16432996,122010.0,122000.0,0.48041442]
[1759582526742,0.16952996,122010.0,122000.0,0.16393442]
[1759582526945,0.16952996,122010.0,122000.0,0.48041442]
[1759582527568,0.16629996,122010.0,122000.0,0.48041442]
[1759582528647,0.16432996,122010.0,122000.0,0.48041442]
[1759582530988,0.16645996,122010.0,122000.0,0.48041442]
[1759582531125,0.16952996,122010.0,122000.0,0.48041442]
[1759582531320,0.16432996,122010.0,122000.0,0.48041442]
[1759582532406,0.16432996,122010.0,122000.0,0.16393442]
[1759582532606,0.16432996,122010.0,122000.0,0.48037442]
[1759582537042,0.00040897,122010.0,122000.0,0.48037442]
[1759582537246,0.16432996,122010.0,122000.0,0.48037442]
[1759582539613,0.16645996,122010.0,122000.0,0.48037442]
[1759582539835,0.16645996,122010.0,121990.0,0.20561131]
[1759582540047,0.16912099,122010.0,122000.0,2.73807142]
[1759582540259,0.16912099,122010.0,122000.0,0.48025442]
[1759582540659,0.16952996,122010.0,122000.0,0.48025442]
[1759582540814,0.16645996,122010.0,122000.0,0.48025442]
[1759582541045,0.16432996,122010.0,122000.0,0.48025442]
[1759582541255,0.16432996,122010.0,122000.0,0.16393442]
[1759582541482,0.16432996,122010.0,122000.0,0.48025442]
[1759582542644,0.16952996,122010.0,122000.0,0.31632]
[1759582542878,0.16952996,122010.0,122000.0,0.48025442]
[1759582543903,0.16645996,122010.0,122000.0,0.48025442]
[1759582544134,0.16432996,122010.0,122000.0,0.48025442]
[1759582546087,0.16645996,122010.0,121990.0,0.20561131]
[1759582546300,0.16605099,122010.0,122000.0,0.48021442]
[1759582546729,0.16605099,122010.0,122000.0,0.31628]
[1759582548014,0.16705099,122010.0,122000.0,0.31628]
[1759582548215,0.16705099,122010.0,122000.0,0.48021442]
[1759582549485,0.16705099,122010.0,122000.0,0.31628]
[1759582549700,0.17012099,122010.0,122000.0,0.31628]
[1759582550666,0.17012099,122010.0,122000.0,0.32018541]
[1759582550870,0.17012099,122010.0,122000.0,0.32409082]
[1759582551984,0.17052996,122010.0,122000.0,0.32409082]
[1759582552864,0.16745996,122010.0,122000.0,0.32409082]
[1759582553269,0.17052996,122010.0,122000.0,0.32409082]
[1759582553894,0.16745996,122010.0,122000.0,0.32409082]
[1759582554350,0.16532996,122010.0,122000.0,0.32409082]
[1759582554901,0.16532996,122010.0,122000.0,0.48802524]
[1759582555741,0.16532996,122010.0,122000.0,0.32409082]
[1759582557518,0.16532996,122010.0,122000.0,0.48802524]
[1759582558161,0.16745996,122010.0,122000.0,0.48802524]
[1759582558575,0.16745996,122010.0,122000.0,0.32409082]
[1759582560574,0.17064996,122010.0,122000.0,0.32409082]
[1759582562262,0.16745996,122010.0,122000.0,0.32409082]
[1759582563114,0.17064996,122010.0,122000.0,0.32409082]
[1759582565108,0.16745996,122010.0,122000.0,0.32409082]
[1759582571114,0.16532996,122010.0,122000.0,0.32409082]
[1759582571551,0.16747996,122010.0,122000.0,0.32409082]
[1759582572749,0.17066996,122010.0,122000.0,0.32409082]
[1759582574114,0.16747996,122010.0,122000.0,0.32409082]
[1759582574454,0.16532996,122010.0,122000.0,0.48802524]
[1759582574663,0.16532996,122010.0,122000.0,0.32409082]
[1759582578440,0.16532996,122010.0,122000.0,0.3486901]
[1759582578667,0.16532996,122010.0,122000.0,0.0324101]
[1759582578897,0.17066996,122010.0,122000.0,0.3485301]
[1759582579176,0.16747996,122010.0,122000.0,0.3485301]
[1759582579414,0.16532996,122010.0,122000.0,0.3485301]
[1759582582199,0.17066996,122010.0,122000.0,0.3484901]
[1759582582548,0.16747996,122010.0,122000.0,0.3484901]
[1759582582962,0.17066996,122010.0,122000.0,0.3484901]
[1759582583558,0.16747996,122010.0,122000.0,0.3484901]
[1759582583690,0.16532996,122010.0,122000.0,0.3484901]
[1759582586387,0.16532996,122010.0,122000.0,0.2633301]
[1759582586600,0.16532996,122010.0,122000.0,0.3484901]
[1759582587914,0.17066996,122010.0,122000.0,0.3484901]
[1759582588480,0.16747996,122010.0,122000.0,0.3484901]
[1759582589810,0.16747996,122010.0,122000.0,0.0324101]
[1759582590035,0.16747996,122010.0,122000.0,0.3484901]
[1759582590238,0.16532996,122010.0,122000.0,0.3484901]
[1759582593263,0.17040996,122010.0,122000.0,0.3484901]
[1759582594915,0.16727996,122010.0,122000.0,0.3484901]
[1759582595223,0.16532996,122010.0,122000.0,0.51242452]
[1759582596065,0.16532996,122010.0,122000.0,0.3484901]
[1759582597970,0.16532996,122010.0,122000.0,0.51242452]
[1759582598592,0.16532996,122010.0,122000.0,0.3484901]
[1759582598802,0.16532996,122010.0,122000.0,0.51242452]
[1759582600267,0.16532996,122010.0,122000.0,0.5046137]
[1759582600857,0.16532996,122010.0,122000.0,0.02459928]
[1759582601078,0.16532996,122010.0,122000.0,0.34063928]
[1759582603936,0.17040996,122010.0,122000.0,0.34372532]
[1759582604165,0.16727996,122010.0,122000.0,0.02768532]
[1759582604635,0.16727996,122010.0,122000.0,0.34368532]
[1759582605644,0.16727996,122010.0,122000.0,0.02768532]
[1759582606051,0.16727996,122010.0,122000.0,0.34368532]
[1759582607564,0.17040996,122010.0,122000.0,0.34368532]
[1759582612820,0.17040996,122010.0,122000.0,0.34059928]
[1759582613681,0.17040996,122010.0,122000.0,0.5045337]
[1759582614854,0.17040996,122010.0,122000.0,0.34059928]
[1759582615276,0.17040996,122010.0,122000.0,0.5045337]
[1759582615484,0.16727996,122010.0,122000.0,0.5045337]
[1759582615666,0.16532996,122010.0,122000.0,0.5045337]
[1759582636129,0.16532996,122010.0,122000.0,0.24909442]
[1759582636581,0.16532996,122010.0,122000.0,0.2736937]
[1759582637388,0.16532996,122010.0,122000.0,0.5044537]
[1759582642890,0.17045996,122010.0,122000.0,0.5044537]
[1759582643103,0.16739996,122010.0,122000.0,0.5044537]
[1759582643507,0.16532996,122010.0,122000.0,0.5044537]
[1759582645912,0.16532996,122010.0,122000.0,0.50968964]
[1759582645913,0.00140897,122010.0,122000.0,0.50968964]
[1759582646265,0.00140897,122010.0,122000.0,2.51055138]
[1759582646566,0.00140897,122010.0,122000.0,2.82643138]
[1759582646827,0.00140897,122010.0,122000.0,2.51055138]
[1759582647063,0.00140897,122010.0,122000.0,2.82647138]
[1759582663461,0.00140897,122010.0,122000.0,2.51055138]
[1759582663799,0.00646897,122010.0,122000.0,2.82643138]
[1759582664015,0.00140897,122010.0,122000.0,2.82643138]
[1759582682236,0.00140897,122010.0,122000.0,2.59571138]
[1759582682441,0.00140897,122010.0,122000.0,2.82643138]
[1759582682645,0.00346897,122010.0,122000.0,2.51055138]
[1759582682854,0.00666897,122010.0,122000.0,2.82643138]
[1759582683408,0.00346897,122010.0,122000.0,2.82643138]
[1759582683613,0.00666897,122010.0,122000.0,2.82643138]
[1759582684202,0.00346897,122010.0,122000.0,2.82643138]
[1759582684443,0.00140897,122010.0,122000.0,2.82643138]
[1759582688137,0.00346897,122010.0,122000.0,2.82643138]
[1759582688531,0.00140897,122010.0,122000.0,2.82643138]
[1759582688739,0.00346897,122010.0,122000.0,2.82643138]
[1759582689395,0.00140897,122010.0,122000.0,2.82643138]
[1759582693702,0.00140897,122010.0,122000.0,2.74127138]
[1759582693978,0.00140897,122010.0,122000.0,2.82643138]
[1759582696722,0.00140897,122010.0,122000.0,2.82119544]
[1759582697095,0.16738996,122010.0,122000.0,2.50531544]
[1759582697298,0.16738996,122010.0,122000.0,2.82119544]
[1759582697299,0.17058996,122010.0,122000.0,2.82119544]
[1759582698008,0.00666897,122010.0,122000.0,2.82119544]
[1759582698230,0.16738996,122010.0,122000.0,2.82119544]
[1759582699796,0.16532996,122010.0,122000.0,2.82119544]
[1759582700201,0.16738996,122010.0,122000.0,2.82119544]
[1759582700444,0.17058996,122010.0,122000.0,2.50531544]
[1759582700640,0.17058996,122010.0,122000.0,2.82119544]
[1759582702612,0.17058996,122010.0,122000.0,2.73603544]
[1759582702824,0.17058996,122010.0,122000.0,2.82119544]
[1759582706071,0.17058996,122010.0,122000.0,0.56337844]
[1759582709302,0.17058996,122010.0,122000.0,0.31428402]
[1759582709528,0.17058996,122010.0,122000.0,0.34047928]
[1759582709721,0.17058996,122010.0,122000.0,0.5044137]
[1759582710342,0.17058996,122010.0,122000.0,0.34047928]
[1759582710575,0.17058996,122010.0,122000.0,0.5044137]
[1759582716070,0.17058996,122010.0,122000.0,0.1885337]
[1759582716453,0.17058996,122010.0,122000.0,0.5044137]
[1759582718853,0.17058996,122010.0,122000.0,0.34047928]
[1759582719040,0.17058996,122010.0,122000.0,0.5044137]
[1759582719490,0.17058996,122010.0,122000.0,0.34047928]
[1759582720090,0.17058996,122010.0,122000.0,0.5044137]
[1759582723212,0.17058996,122010.0,122000.0,0.56337844]
[1759582724358,0.17058996,122010.0,122000.0,0.24749844]
[1759582724481,0.17058996,122010.0,122000.0,0.39944402]
[1759582725120,0.17058996,122010.0,122000.0,0.56337844]
[1759582725366,0.17058996,122010.0,122000.0,0.39944402]
[1759582725829,0.17058996,122010.0,122000.0,0.56337844]
[1759582726283,0.17058996,122010.0,122000.0,0.39944402]
[1759582728946,0.17058996,122010.0,122000.0,0.56337844]
[1759582729150,0.17058996,122010.0,122000.0,0.39944402]
[1759582735982,0.17058996,122010.0,122000.0,0.56337844]
[1759582736236,0.17058996,122010.0,122000.0,0.39944402]
[1759582736375,0.17058996,122010.0,122000.0,0.56337844]
[1759582737222,0.17058996,122010.0,122000.0,0.39944402]
[1759582739731,0.17058996,122010.0,122000.0,0.56337844]
[1759582740151,0.17058996,122010.0,122000.0,0.39944402]
[1759582744654,0.17058996,122010.0,122000.0,0.56337844]
[1759582745783,0.17058996,122010.0,122000.0,0.39944402]
[1759582746190,0.17058996,122010.0,122000.0,0.08356402]
[1759582746383,0.17058996,122010.0,122000.0,0.31588]
[1759582752502,0.16393442,122000.0,121990.0,0.02711392]
[1759582752708,0.16393442,122000.0,121990.0,2.53403878]
[1759582752868,0.16413892,122000.0,121990.0,2.53403878]
[1759582753746,0.16413892,122000.0,121990.0,2.77795617]
[1759582756060,0.16413892,122000.0,121990.0,2.60581092]
[1759582756501,0.16393442,122000.0,121990.0,2.60581092]
[1759582758115,0.16393442,122000.0,121990.0,2.76975878]
[1759582758580,0.16393442,122000.0,121990.0,2.60581092]
[1759582759229,0.16393442,122000.0,121990.0,2.76975878]
[1759582759662,0.12412549,122010.0,121990.0,2.76975878]
[1759582759882,0.12412549,122010.0,122000.0,2.27421044]
[1759582760095,0.16393442,122000.0,121990.0,0.51194178]
[1759582760310,0.16393442,122000.0,121990.0,2.76975878]
[1759582760563,0.16393442,122000.0,121990.0,2.76530759]
[1759582760768,0.16393442,122000.0,121990.0,2.76730759]
[1759582761059,0.16393442,122000.0,121990.0,2.77030759]
[1759582761271,0.16393442,122000.0,121990.0,2.76830759]
[1759582761470,0.16393442,122000.0,121990.0,2.77030759]
[1759582762282,0.16393442,122000.0,121990.0,2.76730759]
[1759582762684,0.16393442,122000.0,121990.0,2.77030759]
[1759582763536,0.14093442,122000.0,121990.0,2.77030759]
[1759582765566,0.14093442,122000.0,121990.0,2.60635973]
[1759582765891,0.14093442,122000.0,121990.0,2.68514759]
[1759582766105,0.14093442,122000.0,121990.0,2.77030759]
[1759582768591,0.14093442,122000.0,121990.0,2.68514759]
[1759582768779,0.14093442,122000.0,121990.0,2.45442759]
[1759582768921,0.14093442,122000.0,121990.0,2.77030759]
[1759582770670,0.10593441,122000.0,121990.0,2.77030759]
[1759582777840,0.06993441,122000.0,121990.0,2.77030759]
[1759582778776,0.12730997,122010.0,121990.0,2.77030759]
[1759582778930,0.12730997,122010.0,122000.0,2.50489044]
[1759582779137,0.12730997,122010.0,122000.0,0.23068]
[1759582779358,0.12936997,122010.0,122000.0,0.23068]
[1759582780095,0.12936997,122010.0,122000.0,0.31584]
[1759582780719,0.13036997,122010.0,122000.0,0.31584]
[1759582791650,0.13036997,122010.0,122000.0,0.31685246]
[1759582794573,0.13036997,122010.0,122000.0,0.48078688]
[1759582796197,0.13036997,122010.0,122000.0,0.31685246]
[1759582797144,0.13036997,122010.0,122000.0,0.3414517]
[1759582799078,0.13036997,122010.0,122000.0,0.50538612]
[1759582802861,0.13036997,122010.0,122000.0,0.3414517]
[1759582803283,0.13036997,122010.0,122000.0,0.0256117]
[1759582803483,0.13036997,122010.0,122000.0,0.3414517]
[1759582804403,0.13036997,122010.0,122000.0,0.0256117]
[1759582804609,0.13036997,122010.0,122000.0,0.3414517]
[1759582805380,0.13036997,122010.0,122000.0,0.0256117]
[1759582805567,0.13036997,122010.0,122000.0,0.3414517]
[1759582807407,0.13036997,122010.0,122000.0,0.0256117]
[1759582807567,0.13036997,122010.0,122000.0,0.34043924]
[1759582810093,0.11736997,122010.0,122000.0,0.34043924]
[1759582815007,0.11736997,122010.0,122000.0,0.34137176]
[1759582816432,0.11736997,122010.0,122000.0,0.3511201]
[1759582817285,0.09836997,122010.0,122000.0,0.3511201]
[1759582822591,0.09836997,122010.0,122000.0,0.25621176]
[1759582822805,0.09836997,122010.0,122000.0,0.34141176]
[1759582824408,0.06136997,122010.0,122000.0,0.34141176]
[1759582831572,0.17016547,122010.0,122000.0,0.34141176]
[1759582838632,0.17016547,122010.0,122000.0,0.34356176]
[1759582838633,0.13212547,122010.0,122000.0,0.34356176]
[1759582843427,0.13212547,122010.0,122000.0,0.34262924]
[1759582843970,0.16393442,122000.0,121990.0,0.35253783]
[1759582844180,0.16393442,122000.0,121990.0,0.60383065]
[1759582844390,0.16393442,122000.0,121990.0,0.6042428]
[1759582844590,0.16393442,122000.0,121990.0,0.62925419]
[1759582845011,0.16393442,122000.0,121990.0,0.63225419]
[1759582845220,0.16393442,122000.0,121990.0,0.86293419]
[1759582845439,0.16393442,122000.0,121990.0,0.86593419]
[1759582845717,0.12693442,122000.0,121990.0,0.86593419]
[1759582852920,0.08693442,122000.0,121990.0,0.86593419]
[1759582855170,0.13333547,122010.0,121990.0,0.86593419]
[1759582855593,0.13333547,122010.0,121990.0,0.84051065]
[1759582856012,0.13333547,122010.0,122000.0,0.02459924]
[1759582856155,0.13529547,122010.0,122000.0,0.02459924]
[1759582856775,0.13529547,122010.0,122000.0,0.02537422]
[1759582857192,0.13529547,122010.0,122000.0,0.18930864]
[1759582858122,0.13529547,122010.0,122000.0,0.02537422]
[1759582859187,0.13529547,122010.0,122000.0,0.18930864]
[1759582859404,0.13529547,122010.0,122000.0,0.19145864]
[1759582859814,0.10229547,122010.0,122000.0,0.50733864]
[1759582864824,0.09912547,122010.0,122000.0,0.50733864]
[1759582866431,0.09912547,122010.0,122000.0,0.48196442]
[1759582866830,0.12372471,122010.0,122000.0,0.48196442]
[1759582868165,0.09672471,122010.0,122000.0,0.48196442]
[1759582869232,0.02459924,122010.0,122000.0,0.48196442]
[1759582869435,0.16395679,122020.0,122010.0,0.16392099]
[1759582869615,0.16395679,122020.0,122010.0,0.16593099]
[1759582870561,0.16470999,122020.0,122010.0,0.19052783]
[1759582870736,0.16470999,122020.0,122010.0,0.24052783]
[1759582870941,0.16670999,122020.0,122010.0,0.24052783]
[1759582871144,0.16670999,122020.0,122010.0,0.07660684]
[1759582871348,0.16670999,122020.0,122010.0,0.09299893]
[1759582871760,0.16870999,122020.0,122010.0,0.09299893]
[1759582872815,0.16870999,122020.0,122010.0,0.40879893]
[1759582873024,0.16870999,122020.0,122010.0,0.39240684]
[1759582873996,0.16870999,122020.0,122010.0,0.07660684]
[1759582874198,0.16870999,122020.0,122010.0,0.32363893]
[1759582874430,0.16870999,122020.0,122010.0,0.39240684]
[1759582875041,0.13270999,122020.0,122010.0,0.39240684]
[1759582875745,0.13270999,122020.0,122010.0,0.30724684]
[1759582875947,0.13270999,122020.0,122010.0,0.39240684]
[1759582877752,0.13270999,122020.0,122010.0,0.30724684]
[1759582877978,0.13474999,122020.0,122010.0,0.39240684]
[1759582879226,0.13270999,122020.0,122010.0,0.39240684]
[1759582881667,0.13474999,122020.0,122010.0,0.39240684]
[1759582881881,0.13474999,122020.0,122010.0,0.30724684]
[1759582881882,0.13778999,122020.0,122010.0,0.30724684]
[1759582882084,0.13778999,122020.0,122010.0,0.07459684]
[1759582882281,0.10278998,122020.0,122010.0,0.07459684]
[1759582882515,0.12738682,122020.0,122010.0,0.39039684]
[1759582882956,0.10278998,122020.0,122010.0,0.3658]
[1759582886779,0.0047532,122020.0,122010.0,0.53422099]
[1759582887026,0.16866075,122020.0,122010.0,0.53422099]
[1759582889614,0.16388751,122040.0,122030.0,0.16389406]
[1759582889805,0.16393677,122040.0,122030.0,0.39677406]
[1759582890650,0.00217926,122040.0,122030.0,0.39677406]
[1759582890859,0.00417926,122040.0,122030.0,0.39677406]
[1759582891075,0.00730926,122040.0,122030.0,0.39677406]
[1759582891791,0.00830926,122040.0,122030.0,0.39677406]
[1759582893598,0.00304926,122040.0,122030.0,0.39926406]
[1759582893801,0.00304926,122040.0,122020.0,0.13471206]
[1759582894006,0.00304926,122040.0,122030.0,2.94630308]
[1759582894204,0.00304926,122040.0,122030.0,0.18848608]
[1759582894417,0.00304926,122040.0,122030.0,2.44630308]
[1759582894650,0.00104926,122040.0,122030.0,2.44630308]
[1759582895058,4.926e-05,122040.0,122030.0,2.67702308]
[1759582895302,0.00045808,122040.0,122030.0,2.67702308]
[1759582895505,0.00045808,122040.0,122030.0,2.67902308]
[1759582896531,0.0171801,122060.0,122040.0,0.1638796]
[1759582896745,0.10035142,122060.0,122050.0,0.31588]
[1759582896940,0.10248142,122060.0,122050.0,0.31588]
[1759582898179,0.10548142,122060.0,122050.0,0.31588]
[1759582898327,0.10948142,122060.0,122050.0,0.31588]
[1759582898527,0.09543132,122060.0,122050.0,0.31588]
[1759582901056,0.09543132,122060.0,122050.0,0.32526416]
[1759582903440,0.00704926,122060.0,122050.0,0.49166142]
[1759582904318,4.926e-05,122060.0,122050.0,0.51624897]
[1759582904765,0.00104926,122060.0,122050.0,0.51624897]
[1759582905279,0.00104926,122060.0,122050.0,0.51824897]
[1759582906071,4.926e-05,122060.0,122050.0,0.51824897]
[1759582906522,4.926e-05,122060.0,122050.0,0.51827897]
[1759582907594,0.00045797,122060.0,122050.0,0.51827897]
[1759582913097,0.00045797,122060.0,122050.0,3.11706597]
[1759582918614,2.28548049,122090.0,122070.0,0.16383508]
[1759582918837,2.36909526,122090.0,122080.0,0.31592]
[1759582919050,2.37122526,122090.0,122080.0,0.31592]
[1759582919249,2.37183813,122090.0,122080.0,0.31592]
[1759582920058,2.37583813,122090.0,122080.0,0.31592]
[1759582920461,2.37783813,122090.0,122080.0,0.31592]
[1759582920785,2.38483813,122090.0,122080.0,0.31592]
[1759582921231,2.30171607,122090.0,122080.0,0.31592]
[1759582921445,2.29645607,122090.0,122080.0,0.48130699]
[1759582921666,2.29645607,122090.0,122080.0,0.50588886]
[1759582921924,2.28881577,122090.0,122080.0,0.50588886]
[1759582922141,2.28181577,122090.0,122080.0,0.50588886]
[1759582922570,2.28581577,122090.0,122080.0,0.50588886]
[1759582923019,2.28388577,122090.0,122080.0,0.50588886]
[1759582923474,2.28804577,122090.0,122080.0,0.50588886]
[1759582923735,2.28204577,122090.0,122080.0,0.50588886]
[1759582925930,2.27681577,122090.0,122080.0,3.44430586]
[1759582926136,2.27681577,122090.0,122080.0,3.44527586]
[1759582926826,2.27681577,122090.0,122080.0,3.52839792]
[1759582927047,2.27581577,122090.0,122080.0,3.58736266]
[1759582927267,2.27581577,122090.0,122080.0,3.52839792]
[1759582927484,2.27581577,122090.0,122080.0,3.59236266]
[1759582927703,2.27581577,122090.0,122080.0,3.59636266]
[1759582928398,2.27581577,122090.0,122080.0,3.53239792]
[1759582928617,2.27581577,122090.0,122080.0,3.59536266]
[1759582929039,2.27581577,122090.0,122080.0,3.60236266]
[1759582930353,2.27581577,122090.0,122080.0,3.54339792]
[1759582930557,2.27581577,122090.0,122080.0,3.31263792]
[1759582930788,2.23581577,122090.0,122080.0,3.54343792]
[1759582932727,2.23581577,122090.0,122080.0,3.59343792]
[1759582937867,2.19581577,122090.0,122080.0,3.59343792]
[1759582939801,2.19581577,122090.0,122080.0,3.59335792]
[1759582940465,2.19581577,122090.0,122080.0,3.65232266]
[1759582940658,1.82193417,122090.0,122080.0,3.80976982]
[1759582941491,1.82193417,122090.0,122080.0,3.80276982]
[1759582941945,1.82193417,122090.0,122080.0,3.80676982]
[1759582943310,1.82193417,122090.0,122080.0,3.81576982]
[1759582945019,1.78193417,122090.0,122080.0,3.81576982]
[1759582950666,1.78193417,122090.0,122080.0,3.87473456]
[1759582952140,1.74193417,122090.0,122080.0,3.87473456]
[1759582953316,1.74193417,122090.0,122080.0,3.87477456]
[1759582954235,1.74193417,122090.0,122080.0,3.81580982]
[1759582957300,1.74193417,122090.0,122080.0,3.88936424]
[1759582959274,1.70193417,122090.0,122080.0,3.81580982]
[1759582962356,1.70153642,122090.0,122080.0,3.88936424]
[1759582966179,1.66153642,122090.0,122080.0,3.88936424]
[1759582968107,1.26496067,122090.0,122080.0,3.91436424]
[1759582968318,1.08485642,122090.0,122080.0,3.88998982]
[1759582968590,0.86635699,122090.0,122080.0,3.88998982]
[1759582968840,0.60893668,122090.0,122080.0,4.21032558]
[1759582969076,0.5124795,122090.0,122080.0,4.28388]
[1759582969314,0.23117332,122090.0,122080.0,4.28388]
[1759582969530,2.122647,122110.0,122100.0,1.30813206]
[1759582969739,2.122647,122110.0,122100.0,3.27350512]
[1759582969740,1.65393788,122110.0,122100.0,3.27350512]
[1759582969957,1.50340562,122110.0,122100.0,3.27350512]
[1759582970172,1.31761343,122110.0,122100.0,3.27350512]
[1759582970388,1.28073769,122110.0,122100.0,3.29806968]
[1759582970603,0.97658484,122110.0,122100.0,3.24888968]
[1759582970837,0.81882368,122110.0,122100.0,3.24888968]
[1759582971052,0.70794778,122110.0,122100.0,3.25688968]
[1759582972131,0.33304631,122110.0,122100.0,3.25688968]
[1759582972352,0.02944731,122110.0,122100.0,3.27722544]
[1759582972571,1e-08,122110.0,122100.0,3.52291544]
[1759582972785,1e-08,122110.0,122100.0,3.59637131]
[1759582973056,1e-08,122120.0,122110.0,0.65893864]
[1759582973270,8.063e-05,122120.0,122110.0,2.9526617]
[1759582973488,2.0375691,122130.0,122120.0,0.92877333]
[1759582973709,2.0375691,122130.0,122120.0,3.13992639]
[1759582973927,2.03797746,122130.0,122120.0,3.21338226]
[1759582974389,1.6637254,122130.0,122120.0,3.47007829]
[1759582974613,1.44159777,122130.0,122120.0,3.49183072]
[1759582975263,1.06116988,122130.0,122120.0,3.38057921]
[1759582975482,1.06116988,122130.0,122120.0,3.32207078]
[1759582975708,1.06116988,122130.0,122120.0,4.31899078]
[1759582976348,0.66756402,122130.0,122120.0,4.31899078]
[1759582976560,0.53233785,122130.0,122120.0,4.37734436]
[1759582976776,0.53233785,122130.0,122120.0,4.35559193]
[1759582977683,0.53233785,122130.0,122120.0,4.38014985]
[1759582978701,0.53438785,122130.0,122120.0,3.81794795]
[1759582978913,0.53233785,122130.0,122120.0,2.99375437]
[1759582979112,0.53233785,122130.0,122120.0,2.99472437]
[1759582979318,0.53233785,122130.0,122120.0,3.99144437]
[1759582979545,0.53233785,122130.0,122120.0,4.02159627]
[1759582979746,0.53233785,122130.0,122120.0,3.02487627]
[1759582979954,0.53233785,122130.0,122120.0,4.02159627]
[1759582980192,0.53233785,122130.0,122120.0,3.02487627]
[1759582980409,0.53233785,122130.0,122120.0,4.02159627]
[1759582980660,0.49233785,122130.0,122120.0,4.02159627]
[1759582980854,0.49233785,122130.0,122120.0,3.93651627]
[1759582981081,0.49233785,122130.0,122120.0,4.02159627]
[1759582981300,0.49233785,122130.0,122120.0,3.02487627]
[1759582981482,0.49233785,122130.0,122120.0,4.02159627]
[1759582982313,0.49233785,122130.0,122120.0,3.02487627]
[1759582982454,0.49760785,122130.0,122120.0,2.62234627]
[1759582982667,0.49760785,122130.0,122120.0,3.66391437]
[1759582982867,0.49760785,122130.0,122120.0,2.88359437]
[1759582983183,0.49233785,122130.0,122120.0,3.26896857]
[1759582983395,0.49233785,122130.0,122120.0,3.02896857]
[1759582983606,0.49233785,122130.0,122120.0,3.42509047]
[1759582983804,0.49233785,122130.0,122120.0,3.38127627]
[1759582985627,0.49233785,122130.0,122120.0,3.38030627]
[1759582985889,0.49233785,122130.0,122120.0,3.38127627]
[1759582986142,0.49233785,122130.0,122120.0,2.72487627]
[1759582986402,0.49233785,122130.0,122120.0,3.38127627]
[1759582986662,0.49233785,122130.0,122120.0,3.43974985]
[1759582987826,0.49233785,122130.0,122120.0,2.78334985]
[1759582988062,0.49233785,122130.0,122120.0,3.43974985]
[1759582988310,0.49183785,122130.0,122120.0,3.43974985]
[1759582988720,0.45183785,122130.0,122120.0,3.43974985]
[1759582992561,0.45183785,122130.0,122120.0,3.38127627]
[1759582994661,0.45183785,122130.0,122120.0,3.80473214]
[1759582996024,0.41183785,122130.0,122120.0,3.80473214]
[1759582998230,0.41183785,122130.0,122120.0,3.73127627]
[1759582998864,0.30141925,122130.0,122120.0,3.80456813]
[1759582999477,0.30141925,122130.0,122120.0,3.89066813]
[1759582999717,0.30141925,122130.0,122120.0,3.80456813]
[1759583003112,2.46680001,122150.0,122140.0,0.50374652]
[1759583003381,2.46680001,122150.0,122140.0,2.77251842]
[1759583003597,2.46680001,122150.0,122140.0,2.77348842]
[1759583003807,2.46680001,122150.0,122140.0,2.79804942]
[1759583004023,2.46680001,122150.0,122140.0,2.82820132]
[1759583004267,2.46680001,122150.0,122140.0,2.92820132]
[1759583004447,2.46680001,122150.0,122140.0,2.86953248]
[1759583005412,2.46688061,122150.0,122140.0,2.89453248]
[1759583005930,2.09553707,122150.0,122140.0,2.89453248]
[1759583006835,2.09553707,122150.0,122140.0,2.66361248]
[1759583007019,2.09553707,122150.0,122140.0,3.66013248]
[1759583007761,2.09553707,122150.0,122140.0,3.96013248]
[1759583007983,1.70361867,122150.0,122140.0,4.01875659]
[1759583008201,1.50259397,122150.0,122140.0,3.96013248]
[1759583008412,1.47414475,122150.0,122140.0,3.98187721]
[1759583008828,1.08220425,122150.0,122140.0,3.98187721]
[1759583009047,0.81111682,122150.0,122140.0,3.98187721]
[1759583009255,0.6334544,122150.0,122140.0,4.06797721]
[1759583009461,0.4358945,122150.0,122140.0,4.06797721]